Cogmind - Beta 11 X5 @@@ ROGUE MODE // 2021.06.10 @ 03:46:04 Player: Thermal Flight Result: Heading to fleet! Performance ------------- Evolutions (9) 4500 Regions Visited (31) 6200 Robots Destroyed (302) 1510 Value Destroyed (13576) 13576 Prototype IDs (95) 1900 Alien Tech Used (11) 2200 Bonus (30666) 30666 TOTAL SCORE: 60552 Bonus ------- Triggered High Security 500 High Alert Combat Kills 10697 Follower Combat Kills 885 Network Hubs Disabled 200 Aligned with FarCom 300 Met Data Miner 300 Met Zhirov 300 Met Warlord at Base 500 MAIN.C Attacked Warlord 500 Warlord Defense Kill 542 Built Enhanced Grunts 300 Used Core Reset Matrix 3000 Hacked Protovariant 500 Met R17 at Research 2000 Met Warlord at Research 2000 Scanned by Researcher 500 Met MAIN.C 5000 Met Warlord at Command 2000 Win 3000 Friendly Fire -2358 Cogmind --------- Core Integrity 1002/1850 Matter 425/425 Energy 99/100 System Corruption 0% Temperature Cool (0) Movement Core (50) Location To Fleet Rendezvous Parts ------- > --- POWER (1) -------- (None) > --- PROPULSION (8) --- Biometal Heavy Treads Experimental Biometal Leg > --- UTILITY (11) ----- Experimental Targeting Computer Advanced Weapon Cycler Improved Core Shielding > --- WEAPON (5) ------- (None) > --- INVENTORY (5) ---- Launcher Loader Phase Gun Matter Neutralizer Railgun Peak State ------------ > --- POWER ------------ Micro Fission Core > --- PROPULSION ------- Cooled Q-thruster Cooled Q-thruster Cooled Q-thruster Cooled Q-thruster Cooled Q-thruster Cooled Q-thruster Cooled Q-thruster Cooled Q-thruster > --- UTILITY ---------- Advanced Heat Sink Advanced Heat Sink Large Storage Unit Experimental Energy Well Experimental Targeting Computer Experimental Targeting Computer Experimental Armor Integrity Analyzer Improved Core Shielding EM Dispersion Field Matter Drive > --- WEAPON ----------- Cooled Phase Gun Heavy Hardcell Cannon Heavy Hardcell Cannon > --- INVENTORY -------- Experimental Biometal Medium Treads Advanced Weapon Cycler Microactuators Experimental Cloaking Device Experimental Shield Generator System Purifier Transdimensional Reconstructor Integrity Redistributor Enhanced Quantum Rifle Railgun Graviton Cannon Compact Tesla Bomb Launcher [Rating: 225] Favorites ----------- Power Micro Fission Core Engine Improved Ion Engine Power Core Micro Fission Core Reactor Zero-point Reactor Propulsion Cooled Q-thruster Treads Light Treads Leg Experimental Biometal Leg Hover Unit Cooled Gravmag System Flight Unit Cooled Q-thruster Utility Experimental Targeting Computer Device Advanced Heat Sink Storage Large Storage Unit Processor Experimental Targeting Computer Hackware Improved Hacking Suite Protection Improved Core Shielding Artifact Matter Drive Weapon Precision Assault Rifle Energy Gun Advanced Plasma Rifle Energy Cannon Matter Neutralizer Ballistic Gun Precision Assault Rifle Ballistic Cannon Heavy Hardcell Cannon Launcher Compact Tesla Bomb Launcher Special Weapon Mining Laser Impact Weapon Powered Hammer Special Melee Weapon Advanced Datajack Build | -11 -10 -10 -10 -9 -8 -7 -7 -6 -6 -6 -6 -6 -6 -5 -5 -5 -5 -5 -4 -4 -4 -4 -4 -4 -3 -3 -2 -2 -2 -1 -1 ------- Run | Scr Mat Min Exi Min Mat Fac Sto Fac Was Fac Low Low Dat Pro Fac Upp Upp War Pro Fac Ext Cet Arc Hub Res Qua Res Tes Sec Acc Com Slots Evolved 18 | . . . . . 4 2 . 2 . . . . . . 2 . . . . 2 . . . . 2 . 2 . . 2 . Power . | . . . . . . . . . . . . . . . . . . . . . . . . . . . . . . . . Propulsion 6 | . . . . . 1 . . 1 . . . . . . 1 . . . . . . . . . 1 . . . . 2 . Utility 9 | . . . . . 3 1 . 1 . . . . . . 1 . . . . . . . . . 1 . 2 . . . . Weapon 3 | . . . . . . 1 . . . . . . . . . . . . . 2 . . . . . . . . . . . Parts Attached 471 | 9 16 1 4 3 17 19 53 15 . 17 1 1 1 . 12 8 5 12 3 14 15 4 . 3 29 2 17 19 12 14 145 Power 21 | 2 1 . . 1 2 . 7 . . . . . . . 1 . . . . . 1 . . . 1 . . . . . 5 Engine 8 | 2 1 . . 1 . . 4 . . . . . . . . . . . . . . . . . . . . . . . . Core 8 | . . . . . 2 . 3 . . . . . . . 1 . . . . . 1 . . . 1 . . . . . . Reactor 5 | . . . . . . . . . . . . . . . . . . . . . . . . . . . . . . . 5 Propulsion 76 | 2 . . . . 3 . 12 6 . 4 1 . 1 . 2 . 2 1 . 1 1 . . . 14 . 2 12 . 2 10 Treads 8 | 2 . . . . . . . . . . . . . . . . . . . . . . . . . . . . . . 6 Leg 2 | . . . . . . . . . . . . . . . . . . . . . . . . . . . . . . . 2 Wheel . | . . . . . . . . . . . . . . . . . . . . . . . . . . . . . . . . Hover 12 | . . . . . . . 3 . . . . . . . . . . . . . . . . . 6 . 2 1 . . . Flight 54 | . . . . . 3 . 9 6 . 4 1 . 1 . 2 . 2 1 . 1 1 . . . 8 . . 11 . 2 2 Utility 220 | 2 3 1 . . 2 5 9 4 . 5 . 1 . . 3 2 3 6 1 3 9 4 . 2 7 2 12 7 9 11 107 Device 125 | 1 1 1 . . 1 2 4 3 . 1 . . . . 1 1 2 4 1 1 6 1 . 1 4 1 10 4 4 6 64 Storage 18 | . 2 . . . 1 . . . . . . . . . . . . . . . 1 1 . 1 1 . 2 . . 3 6 Processor 16 | 1 . . . . . 3 1 1 . . . . . . . . . 2 . 1 . . . . . . . . . 2 5 Hackware 16 | . . . . . . . 1 . . 3 . 1 . . 1 . . . . 1 2 . . . 1 . . 2 . . 4 Protection 22 | . . . . . . . 3 . . 1 . . . . 1 1 1 . . . . 2 . . 1 . . 1 . . 11 Artifact 23 | . . . . . . . . . . . . . . . . . . . . . . . . . . 1 . . 5 . 17 Weapon 154 | 3 12 . 4 2 10 14 25 5 . 8 . . . . 6 6 . 5 2 10 4 . . 1 7 . 3 . 3 1 23 Energy Gun 21 | . . . . . . . 5 . . . . . . . . . . 1 . 2 . . . . 3 . 2 . . . 8 Energy Cannon 17 | . . . . . 2 . . . . 3 . . . . 2 1 . 1 1 . . . . . . . . . 2 1 4 Ballistic Gun 81 | 3 7 . 4 1 6 14 11 4 . 5 . . . . 4 2 . 2 1 7 4 . . . 2 . . . . . 4 Ballistic Cannon 13 | . . . . . . . 5 . . . . . . . . 3 . . . . . . . . . . . . . . 5 Launcher 8 | . . . . 1 1 . 1 . . . . . . . . . . 1 . . . . . . 1 . 1 . . . 2 Special Weapon 6 | . 5 . . . . . . . . . . . . . . . . . . 1 . . . . . . . . . . . Impact Weapon 7 | . . . . . 1 . 3 1 . . . . . . . . . . . . . . . 1 . . . . 1 . . Slashing Weapon . | . . . . . . . . . . . . . . . . . . . . . . . . . . . . . . . . Piercing Weapon . | . . . . . . . . . . . . . . . . . . . . . . . . . . . . . . . . Special Melee Weapon 1 | . . . . . . . . . . . . . . . . . . . . . . . . . 1 . . . . . . Unidentified Prototypes 38 | . . . . . 1 . 6 . . 1 . . . . . . . 6 . 2 . 2 . . 1 2 . 1 . 1 15 Parts Lost 20 | . . . . . 1 . 8 . . . . . . . . . . . . . . . . 1 . . . . 1 . 9 Power 3 | . . . . . . . 3 . . . . . . . . . . . . . . . . . . . . . . . . Propulsion 9 | . . . . . 1 . 4 . . . . . . . . . . . . . . . . 1 . . . . . . 3 Utility 4 | . . . . . . . 1 . . . . . . . . . . . . . . . . . . . . . 1 . 2 Weapon 4 | . . . . . . . . . . . . . . . . . . . . . . . . . . . . . . . 4 Highest Loss Streak 6 | . . . . . 1 . 4 . . . . . . . . . . . . . . . . 1 . . . . 1 . 6 Average Slot Usage (%) 85 | . 99 100 100 100 62 72 78 85 86 84 86 86 86 86 87 82 83 87 88 83 91 89 89 83 83 95 94 84 70 76 78 Engine 2 | . 14 14 14 14 2 . 3 . . . . . . . . . . . . . . . . . . . . . . . . Core 3 | . . . . . 6 7 2 6 6 6 6 6 6 6 5 5 5 5 5 5 5 5 5 5 4 4 4 4 4 4 1 Treads 7 | . 28 28 28 28 4 . . . . . . . . . . . . . . . . . . . . . . . . . 10 Hover 2 | . . . . . . . 5 . . . . . . . . . . . . . . . . . 5 28 26 10 . . . Flight 15 | . . . . . 20 23 16 26 26 25 26 26 26 26 28 23 24 29 29 26 26 26 26 23 14 . . 14 26 31 12 Device 10 | . 13 14 14 14 7 13 9 6 13 6 6 6 6 6 5 11 12 9 5 4 9 10 10 10 6 5 13 7 5 7 14 Storage 7 | . 11 14 14 14 9 7 7 6 6 6 6 6 6 6 5 5 5 5 5 5 5 5 5 6 7 4 7 4 4 6 7 Processor 11 | . 2 . . . . 8 7 13 13 13 13 13 13 13 11 11 11 18 23 21 21 21 21 21 19 19 17 17 17 17 9 Hackware 1 | . . . . . . . . 5 . 4 6 6 6 6 9 . . . . . 2 . . . 2 3 . 7 5 . . Protection 1 | . . . . . . . 2 . . . . . . . 1 5 3 . . . . 4 5 3 4 1 . . . . 4 Energy Gun 1 | . . . . . . . 10 . . . . . . . . . . . . 1 . . . . . 4 4 4 . . 1 Ballistic Gun 11 | . 25 28 28 28 11 11 5 19 20 18 20 20 20 20 16 16 17 16 16 18 20 15 15 12 3 4 3 . . . . Ballistic Cannon 1 | . . . . . . . . . . . . . . . . . . . . . . . . . . . . . . . 5 Launcher 1 | . . . . . . . . . . . . . . . . . . . . . . . . . 1 4 5 2 . . 3 Naked Turns . | . . . . . . . . . . . . . . . . . . . . . . . . . . . . . . . . Heaviest Build 163 | 10 25 25 25 25 24 21 28 25 25 26 24 24 24 24 27 30 28 29 23 34 42 41 41 41 58 58 66 63 44 56 163 Greatest Support 283 | 40 40 40 40 40 40 21 27 25 25 25 25 25 25 25 29 29 33 34 30 34 44 42 42 46 66 86 81 66 48 80 283 Greatest Overweight (x) 2 | 1 . . . . 1 1 1 . . 1 1 . 1 . . 1 . . . 1 2 1 . . 2 . . 2 . 1 1 Average Overweight (x) . | . . . . . . . . . . . . . . . . . . . . . . . . . . . . . . . . Largest Inventory Capacity 25 | 5 10 10 10 10 25 25 25 25 25 25 25 25 25 25 25 25 25 25 25 25 25 10 10 10 15 15 15 15 15 15 20 Average Capacity 16 | 5 8 10 10 10 21 25 25 25 25 25 25 25 25 25 25 25 25 25 25 25 13 10 10 10 14 15 15 15 15 15 16 Most Carried 25 | 5 10 10 10 10 24 25 25 25 24 25 25 25 25 25 25 25 25 25 23 25 24 10 10 10 15 15 15 15 15 15 16 Average Carried 15 | 2 7 9 9 9 16 22 23 22 24 24 23 25 24 24 24 23 24 23 23 23 13 9 10 10 14 14 14 14 14 14 13 Final Capacity 25 | 5 10 10 10 10 25 25 25 25 25 25 25 25 25 25 25 25 25 25 25 25 10 10 10 10 15 15 15 15 15 15 5 Final Carried 25 | 5 10 10 10 10 23 25 25 24 24 21 25 25 24 25 25 25 25 23 23 23 10 10 10 10 13 15 15 15 15 15 5 Class Distribution -------------------- 21% | Scout 20% | Mutant 11% | Alien-Mutant 8% | Alien-Sprinter 8% | Sprinter 7% | Scavenger-Scout 5% | Alien-Gunner 4% | Hacker-Scout 3% | Commander-Scout Dominant Class ---------------- Mutant | -10/Materials Mutant | -10/Mines Mutant | -10/Exiles Mutant | -9/Mines Sprinter | -8/Materials Sprinter | -7/Factory Sprinter | -7/Storage Scout | -6/Factory Scout | -6/Waste Scout | -6/Factory Scout | -6/Lower Caves Scout | -6/Lower Caves Skirmisher | -6/Data Miner Scout | -5/Proximity Caves Hacker-Scout | -5/Factory Scout | -5/Upper Caves Scout | -5/Upper Caves Sprinter | -5/Warlord Scout | -4/Proximity Caves Scout | -4/Factory Scout | -4/Extension Commander-Scout | -4/Cetus Scout | -4/Archives Scout | -4/Hub_04(d) Scavenger-Scout | -3/Research Scout | -3/Quarantine Scout | -2/Research Hacker-Scout | -2/Testing Hacker-Scout | -2/Section 7 Alien-Sprinter | -1/Access Alien-Mutant | -1/Command Resources | -11 -10 -10 -10 -9 -8 -7 -7 -6 -6 -6 -6 -6 -6 -5 -5 -5 -5 -5 -4 -4 -4 -4 -4 -4 -3 -3 -2 -2 -2 -1 -1 ----------- Run | Scr Mat Min Exi Min Mat Fac Sto Fac Was Fac Low Low Dat Pro Fac Upp Upp War Pro Fac Ext Cet Arc Hub Res Qua Res Tes Sec Acc Com Matter Collected 11013 | 337 478 138 . 206 255 505 740 157 . 246 159 22 . . 295 184 214 364 42 258 744 286 . . 513 . 257 140 . 395 4078 Remotely 258 | . . . . . . . . . . . . . . . . . . . . . 60 . . . . . . . . 198 . Salvage Created 16286 | 196 302 233 . 357 294 428 789 212 . 312 78 . . . 295 77 173 307 32 288 1405 581 . . 1068 . 244 194 . 335 8086 Parts 621 | 18 27 17 . 22 15 24 32 11 . 10 . . . . 11 3 6 9 . 9 55 36 . . 11 . 14 7 . 13 271 Haulers Intercepted 18 | . 1 . . . 1 2 2 . . 1 . . . . 1 . . . . 2 . . . . 5 . 1 1 . 1 . Recyclers Shooed 9 | . . . . . 2 . . 1 . . . . . . 3 . . . . . . . . . . . . . . . 3 Parts Field Recycled 27 | . . . . . . . . . . . . . . . . . . . . . . . . . . . . . . . 27 Retrieved Matter 511 | . . . . . . . . . . . . . . . . . . . . . . . . . . . . . . . 511 Parts Self-Destructed 75 | . . . . . . . . . . . 5 . . 2 . 3 6 59 . . . . . . . . . . . . . Prevented 23 | . . . . . . . . . . . 2 . . . . . . 21 . . . . . . . . . . . . . Kills | -11 -10 -10 -10 -9 -8 -7 -7 -6 -6 -6 -6 -6 -6 -5 -5 -5 -5 -5 -4 -4 -4 -4 -4 -4 -3 -3 -2 -2 -2 -1 -1 ------- Run | Scr Mat Min Exi Min Mat Fac Sto Fac Was Fac Low Low Dat Pro Fac Upp Upp War Pro Fac Ext Cet Arc Hub Res Qua Res Tes Sec Acc Com Combat Hostiles Destroyed 227 | . 7 7 . 11 5 2 13 1 . 1 . . . . . . 2 6 1 1 12 6 . . 2 . . . . . 150 Melee 1 | . . . . . . . . . . . . . . . . . . . . . . . . . 1 . . . . . . Guns 71 | . 7 7 . 11 4 2 7 1 . 1 . . . . . . 2 6 1 1 12 6 . . 1 . . . . . 2 Cannons 40 | . . . . . 1 . 2 . . . . . . . . . . . . . . . . . . . . . . . 37 AOE 70 | . . . . . . . 1 . . . . . . . . . . . . . . . . . . . . . . . 69 Classes Destroyed 21 | 2 5 . . 1 2 1 2 . . . . . . . . 1 . 1 . . . . . . . . . . . . 6 Worker 27 | . 2 . . . . 7 . . . . . . . . 2 . . . . 1 . . . . 2 . 1 . . 1 11 Builder 8 | . 3 1 . . . . . . . . . . . . 1 . . . . . 1 . . . 1 . . . . 1 . Tunneler 7 | 5 . . . . . . . . . . . . . . . . . . . . . . . . 2 . . . . . . Hauler 18 | . 1 . . . 1 2 2 . . 1 . . . . 1 . . . . 2 . . . . 5 . 1 1 . 1 . Recycler 21 | 1 1 . . 1 1 . . 1 . 1 . . . . 1 . . . . . 2 . . . 2 . . 1 . 2 7 Minesweeper 3 | . . . . . . . . . . . . . . . . 1 2 . . . . . . . . . . . . . . Mechanic 10 | . . . . . . . . . . . . . . . . . . . . . . . . . . . . . . . 10 Operator 7 | . . . . . . . 1 1 . 1 . . . . . . . . . . 2 . . . 1 . . . . . 1 Watcher 11 | . . . . . . 2 2 1 . . . . . . . . . . . . 2 . . . . . 3 . . . 1 Swarmer 28 | . 6 3 . 7 3 . . . . . . . . . . . . 3 . . . 1 . . 1 . . . . . 4 Saboteur 8 | . . . . . . . . . . . . . . . . . . . . . . . . . . . . . . . 8 Grunt 87 | . 1 4 . 3 . 2 5 . . 1 . . . . . . 1 . . . 9 . . . . . . . . . 61 Brawler 11 | . . . . . . . . . . . . . . . . . . 1 . . . . . . 1 . . . . . 9 Duelist 17 | . . . . 1 . . . . . . . . . . . . . 2 . . . . . . . . . . . . 14 Protector 10 | . . . . . . . . . . . . . . . . . . . . . . . . . . . . . . . 10 Sentry 12 | . . . . . 1 . 6 . . . . . . . . . . . 1 . 2 . . . . . . . . . 2 Hunter 8 | . . . . . 1 . 1 . . . . . . . . . . . . . . . . . . . . . . . 6 Programmer 23 | . . . . . . . 1 1 . . . . . . . . 1 . . 1 . . . . . . . . . . 19 Cetus Guard 5 | . . . . . . . . . . . . . . . . . . . . . . 5 . . . . . . . . . Investigator 2 | . . . . . . . . . . . . . . . . . . . . . . . . . . . . . . . 2 Striker 9 | . . . . . . . . . . . . . . . . . . . . . . . . . . . . . . . 9 Executioner 8 | . . . . . . . . . . . . . . . . . . . . . . . . . . . . . . . 8 Packrat 1 | . . . . . . . . . . . . . . . . 1 . . . . . . . . . . . . . . . Thug 2 | . . . . . . . . . . . . . . . . . . . . . 1 1 . . . . . . . . . Best Kill Streak 26 | 6 3 3 . 4 3 9 3 2 . 2 . . . . 4 1 2 3 1 3 4 3 . . 7 . 2 2 . 3 26 Combat Bots Only 23 | . 3 3 . 4 3 2 3 1 . 1 . . . . . . 1 3 1 1 4 3 . . 1 . . . . . 23 Max Kills in Single Turn 5 | 1 1 1 . 2 1 2 1 1 . 1 . . . . 1 1 1 2 1 2 1 2 . . 1 . 1 1 . 1 5 Gunslinging 1 | . . . . 1 . . . . . . . . . . . . . . . 1 . 1 . . . . . . . . . Exploded 4 | . . . . . . . 1 . . . . . . . . . . . . . . . . . . . . . . . 4 Melee 1 | . . . . . . . . . . . . . . . . . . . . . . . . . 1 . . . . . . Uniques/NPCs Destroyed 1 | . . . . . . . . . . . . . . . . . . . . . . 1 . . . . . . . . . A7 (-4/Cetus) Combat | -11 -10 -10 -10 -9 -8 -7 -7 -6 -6 -6 -6 -6 -6 -5 -5 -5 -5 -5 -4 -4 -4 -4 -4 -4 -3 -3 -2 -2 -2 -1 -1 -------- Run | Scr Mat Min Exi Min Mat Fac Sto Fac Was Fac Low Low Dat Pro Fac Upp Upp War Pro Fac Ext Cet Arc Hub Res Qua Res Tes Sec Acc Com Damage Taken 13882 | . 227 117 . 107 324 119 1373 78 . 73 11 12 . 24 . . 202 14 155 107 234 80 . 95 203 71 64 21 870 311 8990 Core 1544 | . 43 24 . 8 85 . 219 19 . 19 . 12 . . . . . . 19 . . 38 . 21 . . . . 548 41 448 Absorbed by Shields 1500 | . . . . . . . . . . . . . . . . . . . . . 58 50 . . . . . . . 72 1320 Reduced by Siege Mode 406 | . . . . . . . . . . . . . . . . . . . . . . . . . . . . . . . 406 Core Remaining (%) 80 | 100 . . . 70 84 . 68 . . . . . . 94 . . . . 98 . . . . 94 . 92 . . 48 . 54 Volleys Fired 681 | 13 63 16 . 18 27 34 53 13 . 23 3 . . . 16 16 16 18 5 8 30 19 5 . 7 . 8 1 2 14 253 Largest 5 | 2 2 2 . 2 2 3 3 3 . 3 3 . . . 3 3 3 3 3 4 5 3 3 . 2 . 2 2 1 1 4 Hottest 360 | 40 100 46 . 46 130 75 183 84 . 90 84 . . . 84 84 84 84 106 165 161 105 105 . 70 . 188 188 94 120 360 Shots Fired 1332 | 26 100 32 . 36 43 102 135 39 . 40 9 . . . 40 26 48 54 15 29 113 57 15 . 10 . 12 2 2 14 333 Gun 960 | 26 77 32 . 36 37 102 123 39 . 26 9 . . . 36 15 48 54 10 28 113 57 15 . 10 . 8 2 . . 57 Cannon 232 | . . . . . 6 . 9 . . 14 . . . . 4 11 . . 5 . . . . . . . . . 2 14 167 Launcher 116 | . . . . . . . 3 . . . . . . . . . . . . . . . . . . . 4 . . . 109 Special 24 | . 23 . . . . . . . . . . . . . . . . . . 1 . . . . . . . . . . . Kinetic 1008 | 26 77 32 . 36 37 102 45 39 . 26 9 . . . 36 17 48 54 10 25 113 57 15 . 10 . 4 . . . 190 Thermal 200 | . 23 . . . 6 . 87 . . 14 . . . . 4 9 . . . 3 . . . . . . 4 2 . 14 34 Explosive 43 | . . . . . . . 3 . . . . . . . . . . . . . . . . . . . . . . . 40 Electromagnetic 75 | . . . . . . . . . . . . . . . . . . . . . . . . . . . 4 . 2 . 69 Entropic 5 | . . . . . . . . . . . . . . . . . . . 5 . . . . . . . . . . . . Robot Hit Streak 38 | 8 10 5 . 4 14 10 20 8 . 8 7 . . . 12 18 26 15 13 11 34 19 10 . 7 . 5 6 . 10 38 Robot Miss Streak 6 | 3 4 2 . 2 2 6 3 2 . 1 1 . . . 3 . 2 2 1 1 3 4 1 . 1 . 2 . . 1 4 Penetration Max 2 | . . . . . . . . . . . . . . . . . . . . 2 2 2 1 . 1 . . . . . 1 Secondary Targets 17 | . . . . 4 1 1 . . . . . . . . . . . 2 . 1 3 5 . . . . . . . . . Max Gunslinging Chain 1 | . . . . 1 1 1 . . . . . . . . . . . 1 . 1 1 1 . . . . . . . . . Shots Hit Robots 908 | 18 42 17 . 22 32 47 95 26 . 18 7 . . . 25 13 37 46 13 24 66 39 14 . 36 . 12 4 . 12 243 Core Hits 632 | 7 17 10 . 12 13 19 39 9 . 10 2 . . . 10 4 11 21 4 9 49 18 7 . 7 . 6 4 . 4 340 Critical Kills 26 | . . . . . 1 . . . . . . . . . . . . . . 2 13 5 . . 2 . 2 . . 1 . Critical Parts Destroyed 36 | . . . . . . . . . . . . . . . . . 1 . . 3 17 5 5 . 4 . . . . . 1 Critical Strikes 79 | . . . . . 1 . 8 . . . . . . . . . 1 . . 5 30 11 7 . 6 . 2 . . 1 7 Burn 8 | . . . . . . . 7 . . . . . . . . . . . . . . . . . . . . . . . 1 Meltdown 1 | . . . . . . . . . . . . . . . . . . . . . . . . . . . . . . 1 . Destroy 62 | . . . . . 1 . . . . . . . . . . . 1 . . 5 30 11 7 . 4 . 2 . . . 1 Blast 6 | . . . . . . . 1 . . . . . . . . . . . . . . . . . . . . . . . 5 Smash 2 | . . . . . . . . . . . . . . . . . . . . . . . . . 2 . . . . . . Melee Attacks 73 | . . . . . 1 . 10 2 . . . . . . . . . . . . . . . . 51 1 4 2 2 . . Impact 73 | . . . . . 1 . 10 2 . . . . . . . . . . . . . . . . 51 1 4 2 2 . . Slashing . | . . . . . . . . . . . . . . . . . . . . . . . . . . . . . . . . Piercing . | . . . . . . . . . . . . . . . . . . . . . . . . . . . . . . . . Sneak Attacks 17 | . . . . . . . 1 . . . . . . . . . . . . . . . . . 12 . 3 1 . . . Combat Hostiles . | . . . . . . . . . . . . . . . . . . . . . . . . . . . . . . . . Follow-up Attacks . | . . . . . . . . . . . . . . . . . . . . . . . . . . . . . . . . Damage Inflicted 55664 | 222 698 281 . 329 527 886 2095 562 . 375 130 . . . 530 259 783 946 348 439 1164 400 224 . 1898 . 470 203 . 513 41382 Guns 12218 | 222 648 273 . 329 410 886 1643 562 . 375 130 . . . 530 259 783 946 125 439 1164 400 224 . 80 . 145 57 . . 1588 Cannons 9445 | . . . . . 117 . 116 . . . . . . . . . . . 223 . . . . . . . . . . 513 8476 Explosions 31675 | . . . . . . . 301 . . . . . . . . . . . . . . . . . . . 116 . . . 31258 Melee 2208 | . . . . . . . 35 . . . . . . . . . . . . . . . . . 1818 . 209 146 . . . Ramming 94 | . 26 8 . . . . . . . . . . . . . . . . . . . . . . . . . . . . 60 Kinetic 18633 | 222 648 273 . 329 410 886 528 562 . 375 130 . . . 530 259 783 946 125 391 1164 400 224 . 80 . 31 . . . 9337 Thermal 3677 | . 24 . . . 117 . 1231 . . . . . . . . . . . . 48 . . . . . . 114 57 . 513 1573 Explosive 21673 | . . . . . . . 301 . . . . . . . . . . . . . . . . . . . . . . . 21372 Electromagnetic 9156 | . . . . . . . . . . . . . . . . . . . . . . . . . . . 116 . . . 9040 Impact 2208 | . . . . . . . 35 . . . . . . . . . . . . . . . . . 1818 . 209 146 . . . Slashing . | . . . . . . . . . . . . . . . . . . . . . . . . . . . . . . . . Piercing . | . . . . . . . . . . . . . . . . . . . . . . . . . . . . . . . . Entropic 223 | . . . . . . . . . . . . . . . . . . . 223 . . . . . . . . . . . . Highest Corruption 3 | . . . . . . . . 2 2 2 . . . . . . 1 1 . . . . . . . . 2 . . . 3 Average Corruption 2 | . . . . . . . . 1 2 1 . . . . . . 1 1 . . . . . . . . 1 . . . 2 Corruption Purged 7 | . . . . . . . . . . 2 . . . . . . . . . . . . . . . . 2 . . . 3 Effects 16 | . . . . . . . . 1 . . . . . . . . . . . . . . . . . . 2 . . . 13 Message Errors 6 | . . . . . . . . . . . . . . . . . . . . . . . . . . . 1 . . . 5 Matter Fused 4 | . . . . . . . . . . . . . . . . . . . . . . . . . . . . . . . 4 Heat Flow Errors 3 | . . . . . . . . 1 . . . . . . . . . . . . . . . . . . 1 . . . 1 Energy Discharges 3 | . . . . . . . . . . . . . . . . . . . . . . . . . . . . . . . 3 Overload Shots 3 | . . . . . . . . . . 1 . . . . . . . . . . . . . . . . . . . . 2 Overflow Damage 4631 | . . . . . 10 . . . . . . . . . . . . . 35 . . . . . 622 . 37 . . 83 3844 Projectiles 1431 | . . . . . 10 . . . . . . . . . . . . . 35 . . . . . . . . . . 83 1303 Explosions 2546 | . . . . . . . . . . . . . . . . . . . . . . . . . . . 11 . . . 2535 Melee 654 | . . . . . . . . . . . . . . . . . . . . . . . . . 622 . 26 . . . 6 Knockbacks 44 | . . . . . . . 2 . . . . . . . . . . . . . . . . . 3 . 1 1 . . 37 Impact 5 | . . . . . . . . . . . . . . . . . . . . . . . . . 3 . 1 1 . . . Kinetic 36 | . . . . . . . 1 . . . . . . . . . . . . . . . . . . . . . . . 35 Secondary 3 | . . . . . . . 1 . . . . . . . . . . . . . . . . . . . . . . . 2 Self-Inflicted Damage 722 | . 18 . . . . . 93 . . . . . . . . . . . . . . . . . . . . . . . 611 Shots 15 | . 1 . . . . . 3 . . . . . . . . . . . . . . . . . . . . . . . 11 Rammed 9 | . 3 1 . 2 . . . . . . . . . . . . . . . . . . . . . . . . . . 3 Targets Rammed 11 | . 4 1 . 3 . . . . . . . . . . . . . . . . . . . . . . . . . . 3 Kicked . | . . . . . . . . . . . . . . . . . . . . . . . . . . . . . . . . Crushed 2 | . 1 . . 1 . . . . . . . . . . . . . . . . . . . . . . . . . . . Highest Temperature 402 | . 160 . . . 84 22 261 225 136 121 84 168 . 84 30 . 98 42 143 225 308 147 109 2 . . 190 200 310 196 402 Average Temperature 74 | . 69 . . . 40 12 81 42 76 50 38 81 . 34 10 . 50 17 75 57 80 66 72 2 . . 69 73 90 128 89 Received Heat Transfer 1496 | . 12 51 . 24 . 54 417 . . 27 . . . 9 . . 45 . 18 12 64 . . 9 12 9 9 . 36 9 679 Effects 7 | . . . . . . . 4 3 . . . . . . . . . . . . . . . . . . . . . . . Energy Bleed 1 | . . . . . . . 1 . . . . . . . . . . . . . . . . . . . . . . . . Interference 6 | . . . . . . . 3 3 . . . . . . . . . . . . . . . . . . . . . . . Siege Activations 14 | . . . . . . . . . . . . . . . . . . . . . . . . . . . . . . . 14 Total Turns 541 | . . . . . . . . . . . . . . . . . . . . . . . . . . . . . . . 541 Longest Duration 158 | . . . . . . . . . . . . . . . . . . . . . . . . . . . . . . . 158 Robots Corrupted 47 | . . . . . . . . . . . . . . . . . . . . . . . . . . . . . . . 47 Combat Hostiles 42 | . . . . . . . . . . . . . . . . . . . . . . . . . . . . . . . 42 Parts Fried 118 | . . . . . . . . . . . . . . . . . . 1 . . 2 1 . . 9 . 5 . . . 100 Impact Corruptions 25 | . . . . . . . . . . . . . . . . . . . . . . . . . 23 . 1 . . . 1 Robots Melted 4 | . . . . . . . 3 . . . . . . . . . . . . . . . . . . . . . . 1 . Combat Hostiles 3 | . . . . . . . 3 . . . . . . . . . . . . . . . . . . . . . . . . Parts Melted 11 | . . . . . . . 9 . . . . . . . . . . . . . . . . . 1 . . 1 . . . Heat Transferred 5698 | . 50 . . . 148 . 3182 . . . . . . . . . . . . 74 . . . . . . 148 74 . 444 1578 Parts Sabotaged 2 | . . . . . . . . . . . . . . . . . . . . . . . . . . . . . . . 2 Parts Stolen . | . . . . . . . . . . . . . . . . . . . . . . . . . . . . . . . . Parts Stripped . | . . . . . . . . . . . . . . . . . . . . . . . . . . . . . . . . Power Chain Reactions 9 | . . . . . . . . . . . . . . . . . . . . . . . . . . . . . . . 9 Missiles Intercepted . | . . . . . . . . . . . . . . . . . . . . . . . . . . . . . . . . Alert | -11 -10 -10 -10 -9 -8 -7 -7 -6 -6 -6 -6 -6 -6 -5 -5 -5 -5 -5 -4 -4 -4 -4 -4 -4 -3 -3 -2 -2 -2 -1 -1 ------- Run | Scr Mat Min Exi Min Mat Fac Sto Fac Was Fac Low Low Dat Pro Fac Upp Upp War Pro Fac Ext Cet Arc Hub Res Qua Res Tes Sec Acc Com Peak Influence 4865 | 30 182 260 . 160 326 347 568 320 157 726 . . . . 92 . . . . 282 321 637 271 209 731 434 724 384 349 664 4865 Initial 424 | . 19 70 . . 11 147 157 198 112 109 . . . . 12 . . . . 12 137 179 254 94 109 344 243 327 216 208 424 Average 691 | 23 65 221 . 38 120 227 368 259 130 409 . . . . 29 . . . . 94 126 500 256 114 349 377 407 340 217 362 1904 Maximum Alert Level 5 | . . 1 . . 1 1 2 1 . 3 . . . . . . . . . 1 1 2 1 1 3 2 3 1 1 2 5 Low Security (%) 38 | 100 100 15 . 100 74 28 4 20 100 7 . . . . 100 . . . . 87 87 8 . 97 36 . . . 40 . . Level 1 22 | . . 84 . . 25 71 49 79 . 55 . . . . . . . . . 12 12 10 100 2 23 90 61 100 59 63 . Level 2 12 | . . . . . . . 46 . . 30 . . . . . . . . . . . 81 . . 35 9 34 . . 36 5 Level 3 7 | . . . . . . . . . . 5 . . . . . . . . . . . . . . 3 . 4 . . . 23 Level 4 6 | . . . . . . . . . . . . . . . . . . . . . . . . . . . . . . . 21 Level 5 4 | . . . . . . . . . . . . . . . . . . . . . . . . . . . . . . . 16 High Security 9 | . . . . . . . . . . . . . . . . . . . . . . . . . . . . . . . 32 Max Security . | . . . . . . . . . . . . . . . . . . . . . . . . . . . . . . . . Squads Dispatched 86 | . 1 . . . 3 1 4 1 . 5 . . . . 2 . . . . 2 2 . . 2 6 . 3 5 1 4 44 Investigation 13 | . 1 . . . 1 . . . . 1 . . . . 1 . . . . . . . . 1 3 . 1 . . 2 2 Extermination 11 | . . . . . . 1 1 . . 1 . . . . 1 . . . . . . . . . . . . 1 . . 6 Reinforcement 25 | . . . . . 2 . 3 1 . 3 . . . . . . . . . 2 2 . . 1 3 . 2 3 1 2 . Assault 37 | . . . . . . . . . . . . . . . . . . . . . . . . . . . . 1 . . 36 Garrison . | . . . . . . . . . . . . . . . . . . . . . . . . . . . . . . . . Intercept . | . . . . . . . . . . . . . . . . . . . . . . . . . . . . . . . . Construction Impeded 4 | . . . . . . . 2 . . . . . . . . . . . . 1 1 . . . . . . . . . . Haulers Reinforced 6 | . . . . . . . 1 . . 1 . . . . . . . . . . . . . . 2 . 1 . . 1 . Cargo Convoy Interrupts . | . . . . . . . . . . . . . . . . . . . . . . . . . . . . . . . . Stealth | -11 -10 -10 -10 -9 -8 -7 -7 -6 -6 -6 -6 -6 -6 -5 -5 -5 -5 -5 -4 -4 -4 -4 -4 -4 -3 -3 -2 -2 -2 -1 -1 --------- Run | Scr Mat Min Exi Min Mat Fac Sto Fac Was Fac Low Low Dat Pro Fac Upp Upp War Pro Fac Ext Cet Arc Hub Res Qua Res Tes Sec Acc Com Distress Signals 23 | . . . . . . . 2 . . 1 . . . 1 1 . . . . . 1 2 . . 5 . 2 . 2 2 4 Communications Jammed . | . . . . . . . . . . . . . . . . . . . . . . . . . . . . . . . . Distress Signals . | . . . . . . . . . . . . . . . . . . . . . . . . . . . . . . . . Times Spotted 610 | . 9 6 . 14 16 9 18 6 3 18 4 6 . 8 2 . 11 36 1 12 24 14 . 10 17 17 9 4 38 23 275 Peak Tracking Total 18 | . 3 2 . 4 11 3 4 2 3 9 2 3 . 10 1 . 6 11 1 7 8 6 . 11 7 11 5 3 18 11 16 Tactical Retreats 57 | . . . . 1 2 1 2 . . 5 2 1 . . . . 3 3 . 2 3 . . . 3 1 2 . 4 4 18 Traps | -11 -10 -10 -10 -9 -8 -7 -7 -6 -6 -6 -6 -6 -6 -5 -5 -5 -5 -5 -4 -4 -4 -4 -4 -4 -3 -3 -2 -2 -2 -1 -1 ------- Run | Scr Mat Min Exi Min Mat Fac Sto Fac Was Fac Low Low Dat Pro Fac Upp Upp War Pro Fac Ext Cet Arc Hub Res Qua Res Tes Sec Acc Com Traps Triggered 16 | . . . . . 2 . 1 2 . 1 . . . . . . . . . . 2 . . 1 1 . 1 . . 2 3 Indirectly . | . . . . . . . . . . . . . . . . . . . . . . . . . . . . . . . . Trap Hack Attempts . | . . . . . . . . . . . . . . . . . . . . . . . . . . . . . . . . Triggered . | . . . . . . . . . . . . . . . . . . . . . . . . . . . . . . . . Disarmed . | . . . . . . . . . . . . . . . . . . . . . . . . . . . . . . . . Reprogrammed . | . . . . . . . . . . . . . . . . . . . . . . . . . . . . . . . . Reused 4 | . . . . . . . . . . . . . . . . . . 4 . . . . . . . . . . . . . Traps Extracted . | . . . . . . . . . . . . . . . . . . . . . . . . . . . . . . . . Installed 8 | . . . . . . . . . . . . . . . . . . 8 . . . . . . . . . . . . . Triggered 17 | . . . . . . . . . . . . . . . . . 2 12 . . . . . . 1 . . . . . 2 Machines | -11 -10 -10 -10 -9 -8 -7 -7 -6 -6 -6 -6 -6 -6 -5 -5 -5 -5 -5 -4 -4 -4 -4 -4 -4 -3 -3 -2 -2 -2 -1 -1 ---------- Run | Scr Mat Min Exi Min Mat Fac Sto Fac Was Fac Low Low Dat Pro Fac Upp Upp War Pro Fac Ext Cet Arc Hub Res Qua Res Tes Sec Acc Com Machines Disabled 23 | . 3 . . . 1 . 2 . . 1 . . . . . . . . . . . . 1 . 2 1 5 . 2 1 4 Max in Single Turn 2 | . 2 . . . 1 . 1 . . 1 . . . . . . . . . . . . . . 1 1 1 . 1 1 1 Garrison Access 4 | . . . . . . . . . . 1 . . . . . . . . . . . . . . 2 . 1 . . . . Network Hub 1 | . . . . . . . . . . . . . . . . . . . . . . . . 1 . . . . . . . Machines Sabotaged 1 | . . . . . . . . . . . . . . . . . . . . . . . . 1 . . . . . . . Garrisons Compromised . | . . . . . . . . . . . . . . . . . . . . . . . . . . . . . . . . Overloaded Fab Kills . | . . . . . . . . . . . . . . . . . . . . . . . . . . . . . . . . Fab Network Shutdowns . | . . . . . . . . . . . . . . . . . . . . . . . . . . . . . . . . Hacking | -11 -10 -10 -10 -9 -8 -7 -7 -6 -6 -6 -6 -6 -6 -5 -5 -5 -5 -5 -4 -4 -4 -4 -4 -4 -3 -3 -2 -2 -2 -1 -1 --------- Run | Scr Mat Min Exi Min Mat Fac Sto Fac Was Fac Low Low Dat Pro Fac Upp Upp War Pro Fac Ext Cet Arc Hub Res Qua Res Tes Sec Acc Com Machines Accessed 93 | . 5 . 2 . 2 2 10 3 . 7 1 1 3 1 9 . . 2 . 3 6 . . 2 7 . 2 2 6 4 13 Terminals 65 | . 4 . . . . . 10 2 . 5 . . . 1 6 . . . . 2 6 . . 2 4 . 1 2 6 3 11 Fabricators 2 | . . . . . . 1 . 1 . . . . . . . . . . . . . . . . . . . . . . . Repair Stations 3 | . . . . . . . . . . . . . . . 1 . . . . 1 . . . . . . . . . . 1 Recycling Units 4 | . 1 . . . 1 . . . . . . . . . 1 . . . . . . . . . . . . . . . 1 Scanalyzers 4 | . . . . . 1 . . . . . . . . . 1 . . . . . . . . . 1 . . . . 1 . Garrison Access 6 | . . . . . . 1 . . . 2 . . . . . . . . . . . . . . 2 . 1 . . . . Total Hacks 243 | . 15 . 2 . 3 3 19 7 . 22 4 1 22 2 24 . . 6 . 4 14 . . 3 13 . 4 15 16 8 36 Successful 130 | . 8 . 2 . 3 1 10 2 . 10 4 1 22 1 14 . . 6 . 2 6 . . 1 5 . . 6 7 2 17 Failed 112 | . 7 . . . . 2 9 5 . 11 . . . 1 10 . . . . 2 8 . . 2 8 . 4 9 9 6 19 Catastrophic 26 | . 2 . . . . . 1 . . 3 . . . . 1 . . . . . 3 . . 2 2 . 3 1 3 3 2 Database Lockouts 1 | . . . . . . . . . . 1 . . . . . . . . . . . . . . . . . . . . . Manual 100 | . 8 . 1 . 1 3 7 5 . 17 . . . . 7 . . 1 . 2 10 1 . 3 5 . 2 6 3 1 17 Terminals 172 | . 14 . . . . . 19 5 . 17 . . . 2 16 . . . . 3 14 . . 3 10 . 2 15 16 7 29 Fabricators 3 | . . . . . . 1 . 2 . . . . . . . . . . . . . . . . . . . . . . . Repair Stations 10 | . . . . . . . . . . . . . . . 3 . . . . 1 . . . . . . . . . . 6 Recycling Units 5 | . 1 . . . 2 . . . . . . . . . 1 . . . . . . . . . . . . . . . 1 Scanalyzers 7 | . . . . . 1 . . . . . . . . . 4 . . . . . . . . . 1 . . . . 1 . Garrison Access 11 | . . . . . . 2 . . . 5 . . . . . . . . . . . . . . 2 . 2 . . . . Terminal Hacks 89 | . 7 . 2 . . . 9 1 . 6 4 1 22 1 7 . . 6 . 1 5 . . . 1 . . 4 5 1 6 Record 11 | . . . 1 . . . . . . . 4 . 6 . . . . . . . . . . . . . . . . . . Part Schematic 11 | . . . . . . . . . . 2 . . 8 . 1 . . . . . . . . . . . . . . . . Robot Schematic 5 | . . . . . . . . . . . . . 5 . . . . . . . . . . . . . . . . . . Robot Analysis 4 | . 4 . . . . . . . . . . . . . . . . . . . . . . . . . . . . . . Prototype ID Bank 11 | . . . . . . . . . . 1 . . 3 . 1 . . 5 . . 1 . . . . . . . . . . Open Door 11 | . . . . . . . 5 . . . . 1 . 1 . . . 1 . . . . . . . . . . 3 . . Branch Access Points 5 | . 1 . . . . . . 1 . 1 . . . . 1 . . . . . . . . . 1 . . . . . . Emergency Access Points 1 | . . . . . . . . . . 1 . . . . . . . . . . . . . . . . . . . . . Terminal Index 2 | . . . . . . . 1 . . . . . . . . . . . . . . . . . . . . . . 1 . Repair Station Index 1 | . . . . . . . . . . . . . . . 1 . . . . . . . . . . . . . . . . Alert Level 6 | . . . . . . . 1 . . . . . . . . . . . . . 1 . . . . . . 1 . . 3 Unreport Threat 6 | . . . . . . . 1 . . . . . . . 1 . . . . . 2 . . . . . . . 2 . . Patrol Status 2 | . 1 . . . . . . . . . . . . . . . . . . . . . . . . . . . . . 1 Recall Reinforcements 2 | . . . . . . . . . . . . . . . . . . . . . 1 . . . . . . 1 . . . Zone Layout 6 | . 1 . . . . . 1 . . 1 . . . . 2 . . . . 1 . . . . . . . . . . . EX-Prototype ID Bank 1 | . . . 1 . . . . . . . . . . . . . . . . . . . . . . . . . . . . Protovariant Controls 2 | . . . . . . . . . . . . . . . . . . . . . . . . . . . . 2 . . . Disengage Seal 2 | . . . . . . . . . . . . . . . . . . . . . . . . . . . . . . . 2 Fabricator Hacks . | . . . . . . . . . . . . . . . . . . . . . . . . . . . . . . . . Repair Station Hacks 4 | . . . . . . . . . . . . . . . 1 . . . . . . . . . . . . . . . 3 Scan Component 4 | . . . . . . . . . . . . . . . 1 . . . . . . . . . . . . . . . 3 Recycling Unit Hacks 2 | . . . . . 1 . . . . . . . . . 1 . . . . . . . . . . . . . . . . Report Inventory 1 | . . . . . . . . . . . . . . . 1 . . . . . . . . . . . . . . . . Retrieve Components 1 | . . . . . 1 . . . . . . . . . . . . . . . . . . . . . . . . . . Scanalyzer 5 | . . . . . 1 . . . . . . . . . 2 . . . . . . . . . 1 . . . . 1 . Insert Component 5 | . . . . . 1 . . . . . . . . . 2 . . . . . . . . . 1 . . . . 1 . Garrison Access Hacks . | . . . . . . . . . . . . . . . . . . . . . . . . . . . . . . . . Unauthorized Hacks 30 | . 1 . . . 1 1 1 1 . 4 . . . . 3 . . . . 1 1 . . 1 3 . . 2 2 . 8 Terminals 22 | . . . . . . . 1 . . 3 . . . . 3 . . . . 1 1 . . 1 1 . . 2 2 . 7 Track 2 | . . . . . . . . . . 1 . . . . . . . . . . . . . . . . . . . . 1 Assimilate 8 | . . . . . . . . . . . . . . . 1 . . . . 1 1 . . . 1 . . 1 2 . 1 Botnet 7 | . . . . . . . 1 . . . . . . . 2 . . . . . . . . . . . . 1 . . 3 Detonate 1 | . . . . . . . . . . 1 . . . . . . . . . . . . . . . . . . . . . Disrupt 1 | . . . . . . . . . . 1 . . . . . . . . . . . . . . . . . . . . . Operators 2 | . . . . . . . . . . . . . . . . . . . . . . . . . . . . . . . 2 Sabotage 1 | . . . . . . . . . . . . . . . . . . . . . . . . 1 . . . . . . . Fabricators 2 | . . . . . . 1 . 1 . . . . . . . . . . . . . . . . . . . . . . . Report 1 | . . . . . . . . 1 . . . . . . . . . . . . . . . . . . . . . . . Haulers 1 | . . . . . . 1 . . . . . . . . . . . . . . . . . . . . . . . . . Repair Stations . | . . . . . . . . . . . . . . . . . . . . . . . . . . . . . . . . Recycling Units 3 | . 1 . . . 1 . . . . . . . . . . . . . . . . . . . . . . . . . 1 Mask 1 | . . . . . . . . . . . . . . . . . . . . . . . . . . . . . . . 1 Tunnel 2 | . 1 . . . 1 . . . . . . . . . . . . . . . . . . . . . . . . . . Scanalyzers . | . . . . . . . . . . . . . . . . . . . . . . . . . . . . . . . . Garrison Access 3 | . . . . . . . . . . 1 . . . . . . . . . . . . . . 2 . . . . . . Jam 3 | . . . . . . . . . . 1 . . . . . . . . . . . . . . 2 . . . . . . Data Cores Recovered 2 | . . . . . . . . . . . . . . . . . . . . . 1 . . . . . . . . . 1 Used 1 | . . . . . . . . . . . . . . . . . . . . . 1 . . . . . . . . . . Hacking Detections 65 | . 4 . . . . 1 7 3 . 7 . . . . 9 . . . . 2 6 1 . 1 4 . 2 2 2 4 10 Full Trace Events 6 | . 1 . . . . . . . . . . . . . 1 . . . . . . . . . 1 . 1 . . 1 1 Feedback Events . | . . . . . . . . . . . . . . . . . . . . . . . . . . . . . . . . Feedback Blocked . | . . . . . . . . . . . . . . . . . . . . . . . . . . . . . . . . Robot Schematics Acquired 5 | . . . . . . . . . . . . . 5 . . . . . . . . . . . . . . . . . . Robots Built . | . . . . . . . . . . . . . . . . . . . . . . . . . . . . . . . . Matter . | . . . . . . . . . . . . . . . . . . . . . . . . . . . . . . . . Time . | . . . . . . . . . . . . . . . . . . . . . . . . . . . . . . . . Total Robot Build Rating . | . . . . . . . . . . . . . . . . . . . . . . . . . . . . . . . . Part Schematics Acquired 11 | . . . . . . . . . . 2 . . 8 . 1 . . . . . . . . . . . . . . . . Parts Built . | . . . . . . . . . . . . . . . . . . . . . . . . . . . . . . . . Matter . | . . . . . . . . . . . . . . . . . . . . . . . . . . . . . . . . Time . | . . . . . . . . . . . . . . . . . . . . . . . . . . . . . . . . Total Part Build Rating . | . . . . . . . . . . . . . . . . . . . . . . . . . . . . . . . . Parts Repaired . | . . . . . . . . . . . . . . . . . . . . . . . . . . . . . . . . Time . | . . . . . . . . . . . . . . . . . . . . . . . . . . . . . . . . Parts Recycled . | . . . . . . . . . . . . . . . . . . . . . . . . . . . . . . . . Recycled Matter . | . . . . . . . . . . . . . . . . . . . . . . . . . . . . . . . . Retrieved Matter . | . . . . . . . . . . . . . . . . . . . . . . . . . . . . . . . . Retrieved Components . | . . . . . . . . . . . . . . . . . . . . . . . . . . . . . . . . Parts Scanalyzed 1 | . . . . . . . . . . . . . . . 1 . . . . . . . . . . . . . . . . Part Schematics Acquired . | . . . . . . . . . . . . . . . . . . . . . . . . . . . . . . . . Parts Damaged . | . . . . . . . . . . . . . . . . . . . . . . . . . . . . . . . . Bothacking | -11 -10 -10 -10 -9 -8 -7 -7 -6 -6 -6 -6 -6 -6 -5 -5 -5 -5 -5 -4 -4 -4 -4 -4 -4 -3 -3 -2 -2 -2 -1 -1 ------------ Run | Scr Mat Min Exi Min Mat Fac Sto Fac Was Fac Low Low Dat Pro Fac Upp Upp War Pro Fac Ext Cet Arc Hub Res Qua Res Tes Sec Acc Com Used RIF Installer . | . . . . . . . . . . . . . . . . . . . . . . . . . . . . . . . . Robots Hacked 1 | . . . . . . . . . . . . . . . . . . . . 1 . . . . . . . . . . . Non-combat 1 | . . . . . . . . . . . . . . . . . . . . 1 . . . . . . . . . . . Combat . | . . . . . . . . . . . . . . . . . . . . . . . . . . . . . . . . Robot Hacks Applied 1 | . . . . . . . . . . . . . . . . . . . . 1 . . . . . . . . . . . find_chute 1 | . . . . . . . . . . . . . . . . . . . . 1 . . . . . . . . . . . Relay Couplers Released . | . . . . . . . . . . . . . . . . . . . . . . . . . . . . . . . . Robots Rewired 10 | . . . . . . . . . . . . . . . . . . . . . 10 . . . . . . . . . . Allies Hacked . | . . . . . . . . . . . . . . . . . . . . . . . . . . . . . . . . Hacks Repelled . | . . . . . . . . . . . . . . . . . . . . . . . . . . . . . . . . Allies | -11 -10 -10 -10 -9 -8 -7 -7 -6 -6 -6 -6 -6 -6 -5 -5 -5 -5 -5 -4 -4 -4 -4 -4 -4 -3 -3 -2 -2 -2 -1 -1 -------- Run | Scr Mat Min Exi Min Mat Fac Sto Fac Was Fac Low Low Dat Pro Fac Upp Upp War Pro Fac Ext Cet Arc Hub Res Qua Res Tes Sec Acc Com Total Allies 24 | . . . . . . . . . . . . . . 1 1 . . . . . 14 5 . . 1 . . 1 . . 1 Largest Group 8 | . . . . . . . . . . . . . . 1 1 . . . . . 8 8 3 . 1 . . 1 . . 1 Highest-Rated Group 670 | . . . . . . . . . . . . . . 95 10 . . . . . 443 670 285 . 26 . . 45 . . 45 Highest-Rated Ally 156 | . . . . . . . . . . . . . . 95 10 . . . . . 156 156 95 . 26 . . 45 . . 45 Total Orders 9 | . . . . . . . . . . . . . . . . . . . . . . 7 2 . . . . . . . . STAY 2 | . . . . . . . . . . . . . . . . . . . . . . 2 . . . . . . . . . ROAM 3 | . . . . . . . . . . . . . . . . . . . . . . 2 1 . . . . . . . . FOLLOW 4 | . . . . . . . . . . . . . . . . . . . . . . 3 1 . . . . . . . . Ally Attacks 141 | . . . . . . . . . . . . . . 7 . . . . . . 80 50 4 . . . . . . . . Total Damage 3866 | . . . . . . . . . . . . . . 235 . . . . . . 2455 1088 88 . . . . . . . . Kills 21 | . . . . . . . . . . . . . . 1 . . . . . . 12 8 . . . . . . . . . Allies Corrupted . | . . . . . . . . . . . . . . . . . . . . . . . . . . . . . . . . Allies Melted 1 | . . . . . . . . . . . . . . . . . . . . . . . . . . . 1 . . . . Intel | -11 -10 -10 -10 -9 -8 -7 -7 -6 -6 -6 -6 -6 -6 -5 -5 -5 -5 -5 -4 -4 -4 -4 -4 -4 -3 -3 -2 -2 -2 -1 -1 ------- Run | Scr Mat Min Exi Min Mat Fac Sto Fac Was Fac Low Low Dat Pro Fac Upp Upp War Pro Fac Ext Cet Arc Hub Res Qua Res Tes Sec Acc Com Robot Analysis Total 4 | . 4 . . . . . . . . . . . . . . . . . . . . . . . . . . . . . . Derelict Logs Recovered 7 | . . . . . . . . . . . 1 1 . 2 . 3 . . . . . . . . . . . . . . . Drone Launches . | . . . . . . . . . . . . . . . . . . . . . . . . . . . . . . . . Drone Recoveries . | . . . . . . . . . . . . . . . . . . . . . . . . . . . . . . . . Exploration | -11 -10 -10 -10 -9 -8 -7 -7 -6 -6 -6 -6 -6 -6 -5 -5 -5 -5 -5 -4 -4 -4 -4 -4 -4 -3 -3 -2 -2 -2 -1 -1 ------------- Run | Scr Mat Min Exi Min Mat Fac Sto Fac Was Fac Low Low Dat Pro Fac Upp Upp War Pro Fac Ext Cet Arc Hub Res Qua Res Tes Sec Acc Com Turns Passed 13480 | 256 728 232 483 864 379 253 567 210 13 331 173 101 79 76 285 283 164 546 123 256 1077 260 38 94 1092 109 500 275 237 179 3217 Spaces Moved 19914 | 132 304 116 293 498 319 430 541 490 63 811 505 430 86 304 793 816 300 1015 393 798 821 226 35 225 1746 308 973 531 928 860 3824 Core 135 | 15 . . . . . . . . . . . . . . . . . . . . 34 . . . . . . . . . 86 Treads 2141 | 117 304 116 293 498 42 . . . . . . . . . . . . . . . . . . . . . . . . . 771 Legs . | . . . . . . . . . . . . . . . . . . . . . . . . . . . . . . . . Wheels . | . . . . . . . . . . . . . . . . . . . . . . . . . . . . . . . . Hover 1596 | . . . . . . . 57 . . . . . . . . . . . . . . . . . 110 308 973 148 . . . Flight 16009 | . . . . . 277 430 484 490 63 811 505 430 86 304 793 816 300 1015 393 798 787 226 35 225 1636 . . 383 895 860 2967 Fastest Speed 5 | 50 160 160 160 160 20 20 20 23 20 23 23 23 23 23 23 27 14 17 23 17 20 23 23 20 24 16 17 8 8 10 5 Average Speed 37 | 148 160 160 160 160 46 28 36 25 20 26 29 23 90 23 23 27 24 22 23 23 32 29 23 25 29 26 29 21 13 10 38 Slowest Speed 160 | 160 160 160 160 160 160 94 97 26 20 91 91 23 91 23 27 95 27 23 23 87 150 87 23 26 146 30 30 149 15 70 146 Overloaded Moves 1978 | . . . . . 6 34 113 14 63 1 454 427 1 303 . . 26 92 . 77 10 . . 8 . 84 12 7 190 . 56 Propulsion Burnouts . | . . . . . . . . . . . . . . . . . . . . . . . . . . . . . . . . Robots Hopped 167 | . . . . . 4 9 5 4 . 11 4 3 . 1 8 3 . 1 . 27 4 . . . 24 . . . 16 14 29 Cave-ins Triggered . | . . . . . . . . . . . . . . . . . . . . . . . . . . . . . . . . Teleports 4 | . . . . . . . . . . . . . . . . . . . . . . . . . . 1 . . 3 . . Spacefolds 16 | . . . . . . . . . . . . . . . . . . . . . . . . . . . . . 16 . . Exploration Rate (%) 50 | 4 56 20 60 99 27 17 83 14 60 29 68 64 70 47 24 76 55 92 58 20 84 60 62 28 37 49 29 62 76 31 70 Regions Visited 31 Branch Regions 20 Pre-discovered Areas 5 | . 1 . 1 . 1 . . . . . . 1 1 . . . . . . . . . . . . . . . . . . Known Exits Taken 22 | . 1 . . . . 1 . . . 1 1 1 1 1 1 1 1 1 1 1 1 1 1 1 1 1 1 1 1 . . Unknown Exits Taken 7 | 1 . 1 1 1 1 . 1 . . . . . . . . . . . . . . . . . . . . . . 1 . Scrap Searched 16 | . . 1 . 2 . . . . . . 5 2 . 1 . 2 3 . . . . . . . . . . . . . . Spaces Dug 57 | . 9 . . . 1 . 3 . . 2 . . . . 2 3 . . . . . . . . 8 . . . . . 29 Terrain Destroyed 442 | . 53 . . . 5 . 24 . . 3 . . . . 2 6 . . 2 2 . 1 . . 8 . 101 . . 1 234 Melee 10 | . . . . . 1 . 1 . . . . . . . . . . . . . . . . . 8 . . . . . . Projectile 79 | . 17 . . . 4 . 4 . . 3 . . . . 2 6 . . 2 2 . . . . . . . . . 1 38 AOE 352 | . 36 . . . . . 19 . . . . . . . . . . . . . . . . . . . 101 . . . 196 Terrain Rammed . | . . . . . . . . . . . . . . . . . . . . . . . . . . . . . . . . Walls Destroyed . | . . . . . . . . . . . . . . . . . . . . . . . . . . . . . . . . Machines Disabled . | . . . . . . . . . . . . . . . . . . . . . . . . . . . . . . . . Actions | -11 -10 -10 -10 -9 -8 -7 -7 -6 -6 -6 -6 -6 -6 -5 -5 -5 -5 -5 -4 -4 -4 -4 -4 -4 -3 -3 -2 -2 -2 -1 -1 --------- Run | Scr Mat Min Exi Min Mat Fac Sto Fac Was Fac Low Low Dat Pro Fac Upp Upp War Pro Fac Ext Cet Arc Hub Res Qua Res Tes Sec Acc Com Total 24702 | 163 410 137 311 536 508 525 807 532 62 887 521 427 87 308 858 845 357 1296 412 825 1552 375 52 260 2220 334 1179 693 987 922 5314 Wait 2786 | . 3 . . 4 115 12 79 10 . 3 2 . . 5 26 1 16 209 12 12 559 120 13 14 368 12 112 94 42 22 921 Move 19547 | 131 303 115 292 497 310 412 531 482 62 790 496 424 85 301 778 809 299 1012 392 745 812 225 34 224 1697 307 972 530 880 833 3767 Hop 152 | . . . . . 4 8 4 4 . 9 4 2 . 1 6 3 . 1 . 25 4 . . . 24 . . . 14 12 27 Pick Up 288 | 6 12 2 6 5 22 14 28 4 . 11 9 . . 1 10 4 11 10 . 7 5 3 . . 16 5 30 18 10 6 33 Fast Attach 177 | 8 . . 1 1 6 1 13 . . . . . . . . . . 5 . 6 7 . . 1 18 2 4 4 10 9 81 Attach 163 | . 2 1 2 . 7 16 21 5 . 7 1 . 1 . 6 2 4 2 . 5 3 . . . 5 1 9 8 7 3 45 Detach 130 | 1 1 . . . 3 14 19 1 . 4 . . . . 1 2 . 4 . 4 2 . . . 4 1 4 2 6 2 55 Swap 145 | 1 14 . 1 2 4 2 19 10 . 10 . 1 . . 6 6 1 5 3 3 5 4 . 2 6 1 4 7 4 2 22 Drop 384 | 3 8 2 9 6 9 12 30 1 . 12 6 . 1 . 9 2 10 22 . 10 15 4 . 1 24 4 32 27 10 9 106 Fire 681 | 13 63 16 . 18 27 34 53 13 . 23 3 . . . 16 16 16 18 5 8 30 19 5 . 7 . 8 1 2 14 253 Melee 73 | . . . . . 1 . 10 2 . . . . . . . . . . . . . . . . 51 1 4 2 2 . . Ram . | . . . . . . . . . . . . . . . . . . . . . . . . . . . . . . . . Kick . | . . . . . . . . . . . . . . . . . . . . . . . . . . . . . . . . Crush 11 | . 4 1 . 3 . . . . . . . . . . . . . . . . . . . . . . . . . . 3 Escape Stasis 83 | . . . . . . . . . . 18 . . . . . . . . . . 36 . . 18 . . . . . 10 1 Rewire 74 | . . . . . . . . . . . . . . . . . . . . . 74 . . . . . . . . . . Trap 8 | . . . . . . . . . . . . . . . . . . 8 . . . . . . . . . . . . . Miscellaneous . | . . . . . . . . . . . . . . . . . . . . . . . . . . . . . . . . Route ------- -11/Scrapyard -10/Materials (discovered 3 exits: [*Mat x2] / *Min) -10/Mines (discovered 2 exits: [*Mat] / *Exi) -10/Exiles -9/Mines (discovered 2 exits: *Mat x2) -8/Materials -7/Factory -7/Storage -6/Factory (discovered 3 exits: *Fac / Low x2) -6/Waste -6/Factory (discovered 3 exits: *Fac / *Low x2) -6/Lower Caves -6/Lower Caves (discovered 2 exits: *Fac / *Dat) -6/Data Miner -5/Proximity Caves -5/Factory (discovered 3 exits: *Fac / *Upp x2) -5/Upper Caves -5/Upper Caves -5/Warlord -4/Proximity Caves -4/Factory (discovered 2 exits: Res / *Ext) -4/Extension (discovered 2 exits: *Res / *Cet) -4/Cetus -4/Archives -4/Hub_04(d) -3/Research (discovered 3 exits: *Res / *Qua x2) -3/Quarantine -2/Research (discovered 2 exits: *Acc / *Tes) -2/Testing -2/Section 7 -1/Access -1/Command To Fleet Rendezvous History --------- Turn | Location | Event 3 | -11/Scrapyard | Discovered new exit (range 15) 257 | -11/Scrapyard | Entered Materials 315 | -10/Materials | Build established: Mutant 338 | -10/Materials | Identified exit to Mines 491 | -10/Materials | Discovered new exit (range 12) 619 | -10/Materials | Discovered new exit (range 13) 985 | -10/Materials | Entered Mines 1063 | -10/Mines | Discovered new exit (range 5) 1209 | -10/Mines | Deemed a non-threat by the Exiles lab entrance 1210 | -10/Mines | Discovered new exit (range 5) 1217 | -10/Mines | Entered Exiles 1257 | -10/Exiles | Met 8R-AWN 1281 | -10/Exiles | Met EX-HEX 1342 | -10/Exiles | Met EX-DEC 1369 | -10/Exiles | Learned location of Zion (-7) 1405 | -10/Exiles | Met EX-BIN 1422 | -10/Exiles | Aligned with FarCom system 1424 | -10/Exiles | Given EX-Vault access code 1464 | -10/Exiles | Opened EX-Vault 1480 | -10/Exiles | Found Lightpack 2.0 1484 | -10/Exiles | Found Modified TNC 1493 | -10/Exiles | Found Trap Reconfigurator 1543 | -10/Exiles | Warned to stay clear of 0b10 Research branches 1683 | -10/Exiles | Discovered new exit (range 14) 1700 | -10/Exiles | Stole three prototypes: Lightpack 2.0, Modified TNC, Trap Reconfigurator 1700 | -10/Exiles | Entered Mines 2349 | -9/Mines | Discovered new exit (range 6) 2380 | -9/Mines | Received a Rocket Launcher from a helpful Derelict 2546 | -9/Mines | Discovered new exit (range 8) 2564 | -9/Mines | Entered Materials 2564 | -8/Materials | Evolved 4 slots: Propulsion x1, Utility x3 2930 | -8/Materials | Discovered new exit (range 12) 2943 | -8/Materials | Entered Factory 2943 | -7/Factory | Evolved 2 slots: Utility x1, Weapon x1 2945 | -7/Factory | FarCom data flow suspended 3178 | -7/Factory | Discovered new exit (range 12) 3196 | -7/Factory | Identified exit to Storage 3196 | -7/Factory | Entered Storage 3526 | -7/Storage | Lost 4 parts (3n1u) 3724 | -7/Storage | Discovered new exit (range 10) 3744 | -7/Storage | Found Powered Armor 3749 | -7/Storage | Build established: Sprinter 3763 | -7/Storage | Entered Factory 3763 | -6/Factory | Evolved 2 slots: Propulsion x1, Utility x1 3836 | -6/Factory | Discovered new exit (range 16) 3841 | -6/Factory | Identified exit to Factory 3898 | -6/Factory | Identified exit to Lower Caves 3973 | -6/Factory | Manually triggered Chute Trap 3973 | -6/Factory | Sucked down chute 3973 | -6/Factory | Entered Waste 3977 | -6/Waste | Spotted C-40 Crusher 3977 | -6/Waste | Spotted C-40 Crusher 3981 | -6/Waste | Spotted C-40 Crusher 3984 | -6/Waste | Spotted C-40 Crusher 3984 | -6/Waste | Discovered new exit (range 10) 3986 | -6/Waste | Identified exit to Factory 3986 | -6/Waste | Entered Factory 4070 | -6/Factory | Build established: Scout 4202 | -6/Factory | Found Prototype Processor 4271 | -6/Factory | Discovered exit to Factory (range 15) 4299 | -6/Factory | Central database locked down 4317 | -6/Factory | Entered Lower Caves 4340 | -6/Lower Caves | Learned Factory terminal intel 4411 | -6/Lower Caves | Learned 8 Research zone layouts 4411 | -6/Lower Caves | Learned Extension security intel 4411 | -6/Lower Caves | Learned Extension garrison access intel 4438 | -6/Lower Caves | Discovered new exit (range 9) 4450 | -6/Lower Caves | Identified exit to Lower Caves 4490 | -6/Lower Caves | Entered another Lower Caves area 4494 | -6/Lower Caves | Discovered exit to Factory (range 6) 4565 | -6/Lower Caves | Discovered new exit (range 9) 4566 | -6/Lower Caves | Spotted 3U-6EV(f) 4566 | -6/Lower Caves | Spotted EB-DEC(f) 4567 | -6/Lower Caves | Spotted Q2-TKR(f) 4568 | -6/Lower Caves | Encountered a Master Thief 4568 | -6/Lower Caves | Encountered a Master Thief 4568 | -6/Lower Caves | Encountered a Master Thief 4590 | -6/Lower Caves | Identified exit to Data Miner 4591 | -6/Lower Caves | Entered Data Miner 4591 | -6/Data Miner | Discovered new exit (range 6) 4609 | -6/Data Miner | Met Data Miner 4632 | -6/Data Miner | Learned location of Section 7 (-2) 4632 | -6/Data Miner | Acquired the access code to Warlord's prototype stash 4643 | -6/Data Miner | Received God Mode back door access code from Data Miner 4669 | -6/Data Miner | Identified exit to Proximity Caves 4670 | -6/Data Miner | Entered Proximity Caves 4688 | -5/Proximity Caves | Escorted by Enhanced Grunt 4688 | -5/Proximity Caves | Attracted the attention of an 0b10 checkpoint 4705 | -5/Proximity Caves | Learned Factory emergency access door positions 4712 | -5/Proximity Caves | Learned 4 Factory zone layouts 4738 | -5/Proximity Caves | Snuck into a huge 0b10 base via the rear entrance 4745 | -5/Proximity Caves | Discovered exit to Factory (range 5) 4746 | -5/Proximity Caves | Entered Factory 4746 | -5/Factory | Evolved 2 slots: Propulsion x1, Utility x1 4749 | -5/Factory | Loaded intel: 19 terminal locations 4854 | -5/Factory | Identified exit to Upper Caves 4872 | -5/Factory | Identified Exp. Targeting Computer 4967 | -5/Factory | Discovered new exit (range 3) 4968 | -5/Factory | Identified exit to Factory 5031 | -5/Factory | Entered Upper Caves 5192 | -5/Upper Caves | Learned Factory stockpile data 5261 | -5/Upper Caves | Learned Factory trap positions 5285 | -5/Upper Caves | Discovered new exit (range 12) 5288 | -5/Upper Caves | Learned Factory emergency access door positions 5295 | -5/Upper Caves | Identified exit to Upper Caves 5314 | -5/Upper Caves | Entered another Upper Caves area 5316 | -5/Upper Caves | Attracted the attention of an 0b10 checkpoint 5474 | -5/Upper Caves | Discovered new exit (range 14) 5475 | -5/Upper Caves | Spotted EO-6VM(f) 5475 | -5/Upper Caves | Spotted XJ-DJ6(f) 5475 | -5/Upper Caves | Spotted PA-430(f) 5475 | -5/Upper Caves | Spotted KT-0H3(f) 5477 | -5/Upper Caves | Encountered a Master Thief 5477 | -5/Upper Caves | Encountered a Master Thief 5477 | -5/Upper Caves | Encountered a Master Thief 5478 | -5/Upper Caves | Encountered a Master Thief 5478 | -5/Upper Caves | Identified exit to Warlord 5478 | -5/Upper Caves | Entered Warlord 5493 | -5/Warlord | Discovered new exit (range 9) 5494 | -5/Warlord | Identified exit to Proximity Caves 5509 | -5/Warlord | System corruption cleaned by Quarantine Array 5561 | -5/Warlord | Found Prototype Device 5562 | -5/Warlord | Identified Minesniffer Drone Bay 5565 | -5/Warlord | Found Minesniffer Drone Bay 5566 | -5/Warlord | Found Minesniffer Drone Bay 5568 | -5/Warlord | Found Minesniffer Drone Bay 5569 | -5/Warlord | Found Minesniffer Drone Bay 5570 | -5/Warlord | Found Minesniffer Drone Bay 5602 | -5/Warlord | Found Prototype Energy Gun 5610 | -5/Warlord | Visited the Vortex Lab 5613 | -5/Warlord | Found Prototype Energy Cannon 5613 | -5/Warlord | Identified Vortex Cannon 5615 | -5/Warlord | Found Prototype Energy Gun 5615 | -5/Warlord | Identified Vortex Shotgun 5618 | -5/Warlord | Found Prototype Launcher 5618 | -5/Warlord | Identified Vortex Catalyst Activator 5632 | -5/Warlord | Warlord's base attacked by MAIN.C 5642 | -5/Warlord | Met Warlord 5644 | -5/Warlord | Opened Warlord's prototype stash 5648 | -5/Warlord | Found Exp. Targeting Computer 5651 | -5/Warlord | Found Prototype Processor 5651 | -5/Warlord | Identified Exp. Armor Integrity Analyzer 5786 | -5/Warlord | Spotted B-86 Titan 5875 | -5/Warlord | Warlord forces counterattacked 5967 | -5/Warlord | Spotted Executioner 5998 | -5/Warlord | Spotted Executioner 6008 | -5/Warlord | Build established: Sprinter 6020 | -5/Warlord | Spotted Executioner 6024 | -5/Warlord | Entered Proximity Caves 6110 | -4/Proximity Caves | Attracted the attention of an 0b10 checkpoint 6143 | -4/Proximity Caves | Discovered exit to Factory (range 7) 6147 | -4/Proximity Caves | Entered Factory 6147 | -4/Factory | Evolved 2 slots: Weapon x2 6148 | -4/Factory | Identified exit to Research 6149 | -4/Factory | Loaded intel: 103 trap records 6149 | -4/Factory | Identified Plasma Storm 6311 | -4/Factory | Found Prototype Processor 6311 | -4/Factory | Identified Exp. Signal Interpreter 6332 | -4/Factory | Build established: Scout 6401 | -4/Factory | Discovered new exit (range 6) 6402 | -4/Factory | Identified exit to Extension 6403 | -4/Factory | Entered Extension 6420 | -4/Extension | Rescued a captive Derelict 6424 | -4/Extension | Rescued a captive Derelict 6720 | -4/Extension | Rescued A7 7097 | -4/Extension | Spotted B-86 Titan 7115 | -4/Extension | Spotted B-86 Titan 7124 | -4/Extension | Allies destroyed B-86 Titan 7128 | -4/Extension | Disrupted transfer network 7134 | -4/Extension | Allies destroyed B-86 Titan 7159 | -4/Extension | Rescued a captive Derelict 7445 | -4/Extension | Discovered exit to Research (range 10) 7446 | -4/Extension | Discovered new exit (range 6) 7447 | -4/Extension | Identified exit to Cetus 7480 | -4/Extension | Entered Cetus 7480 | -4/Cetus | Accompanied by 5 allies (A7) 7485 | -4/Cetus | Acquired a Cetus Manufacturing Module code from A7 7502 | -4/Cetus | Spotted Cetus Guard 7502 | -4/Cetus | Spotted Cetus Guard 7502 | -4/Cetus | Spotted Cetus Guard 7503 | -4/Cetus | Destroyed Cetus Guard 7505 | -4/Cetus | Allies destroyed Cetus Guard 7507 | -4/Cetus | Destroyed Cetus Guard 7543 | -4/Cetus | Started Cetus Manufacturing Module 7568 | -4/Cetus | Manufactured an Enhanced Grunt 7585 | -4/Cetus | Discovered new exit (range 16) 7593 | -4/Cetus | Manufactured an Enhanced Grunt 7618 | -4/Cetus | Manufactured an Enhanced Grunt 7643 | -4/Cetus | Manufactured an Enhanced Grunt 7667 | -4/Cetus | Spotted Cetus Guard 7667 | -4/Cetus | Spotted Cetus Guard 7667 | -4/Cetus | Destroyed Cetus Guard 7668 | -4/Cetus | Manufactured an Enhanced Grunt 7668 | -4/Cetus | Spotted Cetus Guard 7668 | -4/Cetus | Spotted Cetus Guard 7670 | -4/Cetus | Destroyed Cetus Guard 7680 | -4/Cetus | Destroyed Cetus Guard 7687 | -4/Cetus | Allies destroyed Cetus Guard 7713 | -4/Cetus | Destroyed A7 7717 | -4/Cetus | Extracted ID and sensor layout for unrecognized location from A7's data core 7721 | -4/Cetus | Identified exit to Archives 7740 | -4/Cetus | Entered Archives 7740 | -4/Archives | Accompanied by 3 allies 7756 | -4/Archives | Met Zhirov 7758 | -4/Archives | Discovered new exit (range 15) 7762 | -4/Archives | Reinforcements dispatched to Archives 7777 | -4/Archives | Identified exit to Hub_04(d) 7778 | -4/Archives | Entered Hub_04(d) 7804 | -4/Hub_04(d) | Spotted B-86 Titan 7846 | -4/Hub_04(d) | Network Hub disabled 7869 | -4/Hub_04(d) | Discovered exit to Research (range 11) 7872 | -4/Hub_04(d) | Entered Research 7872 | -3/Research | Evolved 2 slots: Propulsion x1, Utility x1 7873 | -3/Research | Identified exit to Research 7896 | -3/Research | Found Quantum Capacitor 8072 | -3/Research | Revision forces began assault on 0b10 8126 | -3/Research | Met up with Revision 17++ 8262 | -3/Research | Identified exit to Quarantine 8342 | -3/Research | Spotted B-90 Cyclops 8356 | -3/Research | Spotted B-86 Titan 8400 | -3/Research | Build established: Scavenger-Scout 8444 | -3/Research | Found Prototype Launcher 8444 | -3/Research | Identified Com. Tesla Bomb Launcher 8519 | -3/Research | Found Exp. ECM Suite 8572 | -3/Research | Research terminal network offline 8585 | -3/Research | Found Com. Tesla Bomb Launcher 8586 | -3/Research | Found Com. Tesla Bomb Launcher 8964 | -3/Research | Spotted Striker 8964 | -3/Research | Spotted Striker 8964 | -3/Research | Entered Quarantine 8971 | -3/Quarantine | Found Alien Artifact 8992 | -3/Quarantine | Found Alien Artifact 8992 | -3/Quarantine | Identified Matter Drive 9000 | -3/Quarantine | Discovered exit to Research (range 14) 9024 | -3/Quarantine | Identified Core Reset Matrix 9024 | -3/Quarantine | Used Core Reset Matrix 9028 | -3/Quarantine | Detected hypermatrix surge 9028 | -3/Quarantine | Sensed 11 artifacts in vicinity 9045 | -3/Quarantine | Found Transdimensional Reconstructor 9051 | -3/Quarantine | Found Hpw. Transdimensional Reconstructor 9052 | -3/Quarantine | Found Hpw. Transdimensional Reconstructor 9054 | -3/Quarantine | Found Hpw. Transdimensional Reconstructor 9054 | -3/Quarantine | Warped through subspace 9067 | -3/Quarantine | Discovered exit to Research (range 15) 9073 | -3/Quarantine | Entered Research 9073 | -2/Research | Warlord forces began assault on 0b10 9073 | -2/Research | Evolved 2 slots: Utility x2 9099 | -2/Research | Found Unknown Device 9099 | -2/Research | Identified Antimissile System 9106 | -2/Research | Found Antimissile System 9177 | -2/Research | Discovered new exit (range 15) 9183 | -2/Research | Research machine network offline 9192 | -2/Research | Identified exit to Access 9200 | -2/Research | Met up with Warlord 9290 | -2/Research | Build established: Scout 9409 | -2/Research | Borebot progress halted 9542 | -2/Research | Discovered new exit (range 11) 9545 | -2/Research | Identified exit to Testing 9573 | -2/Research | Entered Testing 9587 | -2/Testing | Protovariant out of control (PD-KKL86TTLHT) 9587 | -2/Testing | Unleashed a protovariant (PD-KKL86TTLHT) 9838 | -2/Testing | Spotted Fortress 9848 | -2/Testing | Discovered new exit (range 6) 9848 | -2/Testing | Identified exit to Section 7 9848 | -2/Testing | Entered Section 7 9849 | -2/Section 7 | Sensed 20 artifacts in vicinity 9864 | -2/Section 7 | Found Core Reset Matrix 9869 | -2/Section 7 | Spotted B-90 Cyclops 9889 | -2/Section 7 | Warped through subspace 9922 | -2/Section 7 | Warped through subspace 9922 | -2/Section 7 | Discovered exit to Access (range 3) 9923 | -2/Section 7 | Found Spacefold Activator 9933 | -2/Section 7 | Found Integrity Redistributor 9962 | -2/Section 7 | Spotted B-99 Colossus 9971 | -2/Section 7 | Found Integrity Redistributor 9972 | -2/Section 7 | Found Integrity Redistributor 9973 | -2/Section 7 | Found Integrity Redistributor 9980 | -2/Section 7 | Found LRC Armor 9980 | -2/Section 7 | Installed LRC Armor, increased core integrity (+250) 9982 | -2/Section 7 | Found LRC Insulator 9982 | -2/Section 7 | Installed LRC Insulator, gained EM resistance (25) 9984 | -2/Section 7 | Found LRC Matter Compressor 9984 | -2/Section 7 | Installed LRC Matter Compressor, increased matter storage capacity (+125) 9996 | -2/Section 7 | Spotted Executioner 10010 | -2/Section 7 | Found Matter Drive 10013 | -2/Section 7 | Found Matter Drive 10017 | -2/Section 7 | Found Transdimensional Reconstructor 10019 | -2/Section 7 | Used Integrity Redistributor, redistributed integrity from core (-9) 10020 | -2/Section 7 | Found Transdimensional Reconstructor 10021 | -2/Section 7 | Found Transdimensional Reconstructor 10021 | -2/Section 7 | Warped through subspace 10021 | -2/Section 7 | Spotted Executioner 10021 | -2/Section 7 | Spotted Executioner 10023 | -2/Section 7 | Spotted Striker 10023 | -2/Section 7 | Spotted Striker 10053 | -2/Section 7 | Spotted Alpha 7 10053 | -2/Section 7 | Spotted Alpha 7 10059 | -2/Section 7 | Found Integrated Reactor 10059 | -2/Section 7 | Installed Integrated Reactor, increased core energy generation (+10) 10067 | -2/Section 7 | Spotted B-90 Cyclops 10069 | -2/Section 7 | Found Integrated Mediator 10069 | -2/Section 7 | Installed Integrated Mediator, increased core attachment efficiency. 10077 | -2/Section 7 | Core integrity fell below 50% 10085 | -2/Section 7 | Entered Access 10085 | -1/Access | Evolved 2 slots: Propulsion x2 10165 | -1/Access | Spotted B-99 Colossus 10183 | -1/Access | Found Exp. Targeting Computer 10185 | -1/Access | Found Prototype Device 10185 | -1/Access | Identified Exp. Shield Generator 10187 | -1/Access | Found Exp. Shield Generator 10189 | -1/Access | Found Exp. Targeting Computer 10263 | -1/Access | Discovered new exit (range 7) 10264 | -1/Access | Entered Command 10295 | -1/Command | Spotted B-99 Colossus 10336 | -1/Command | Disengaged cave seal 10336 | -1/Command | Derelicts emerged from the dark tunnel 10336 | -1/Command | Welcomed Warlord to Command 10364 | -1/Command | Build established: Alien-Sprinter 10469 | -1/Command | P-80 Master assimilated allied B3-LHY(L) 10469 | -1/Command | Spotted B3-LHY(L) 10520 | -1/Command | Spotted Alpha 7 10529 | -1/Command | Spotted Striker 10542 | -1/Command | First assault squad dispatched 10542 | -1/Command | Spotted Executioner 10542 | -1/Command | Spotted Alpha 7 10557 | -1/Command | Incoming assault squad redirected 10569 | -1/Command | Disengaged cave seal 10569 | -1/Command | Derelicts emerged from the dark tunnel 10644 | -1/Command | Incoming assault squad redirected 10779 | -1/Command | Incoming assault squad redirected 10783 | -1/Command | Incoming assault squad redirected 10783 | -1/Command | Spotted Striker 10783 | -1/Command | Spotted Executioner 10783 | -1/Command | Spotted Executioner 10834 | -1/Command | Used Integrity Redistributor, redistributed integrity from core (-34) 10874 | -1/Command | Incoming assault squad redirected 11017 | -1/Command | Spotted M Guard 11018 | -1/Command | Spotted M Guard 11018 | -1/Command | Spotted Combat Programmer 11027 | -1/Command | Spotted Combat Programmer 11041 | -1/Command | Met MAIN.C 11103 | -1/Command | Spotted B-99 Colossus 11105 | -1/Command | Discovered new exit (range 12) 11160 | -1/Command | Found Prototype Device 11160 | -1/Command | Identified Exp. Cloaking Device 11162 | -1/Command | Found Prototype Device 11162 | -1/Command | Identified System Purifier 11164 | -1/Command | Found Prototype Device 11164 | -1/Command | Identified EM Dispersion Field 11458 | -1/Command | Incoming assault squad redirected 11492 | -1/Command | Destroyed 9 combat bots 11548 | -1/Command | Build established: Alien-Gunner 11559 | -1/Command | Incoming investigation squad redirected 11904 | -1/Command | Found Unknown Device 11904 | -1/Command | Identified Launcher Loader 12009 | -1/Command | Found Prototype Reactor 12009 | -1/Command | Identified Zero-point Reactor 12017 | -1/Command | Found Prototype Processor 12017 | -1/Command | Identified Exp. Target Analyzer 12020 | -1/Command | Found Prototype Device 12020 | -1/Command | Identified Exp. Force Field 12127 | -1/Command | Found Prototype Launcher 12127 | -1/Command | Identified Point Singularity Launcher 12246 | -1/Command | Build established: Alien-Mutant 12433 | -1/Command | High security lockdown imminent 12439 | -1/Command | Used Integrity Redistributor, redistributed integrity from core (-139) 12513 | -1/Command | High security lockdown engaged 12668 | -1/Command | Spotted Striker 12674 | -1/Command | Destroyed Striker 12717 | -1/Command | Destroyed 19 combat bots 12744 | -1/Command | Scanned by Researcher 12745 | -1/Command | Destroyed Investigator 12770 | -1/Command | Destroyed 14 combat bots 12832 | -1/Command | Spotted Striker 12832 | -1/Command | Spotted Executioner 12832 | -1/Command | Spotted Executioner 12836 | -1/Command | Destroyed Executioner 12850 | -1/Command | Destroyed Striker 12853 | -1/Command | Spotted Executioner 12853 | -1/Command | Spotted Striker 12854 | -1/Command | Destroyed Executioner 12854 | -1/Command | Spotted Striker 12858 | -1/Command | Used Integrity Redistributor, redistributed integrity from core (-186) 12878 | -1/Command | Destroyed Striker 12880 | -1/Command | Destroyed Striker 12887 | -1/Command | Destroyed Executioner 12920 | -1/Command | Destroyed 23 combat bots 13075 | -1/Command | Spotted Executioner 13075 | -1/Command | Spotted Executioner 13079 | -1/Command | Spotted Striker 13081 | -1/Command | Destroyed Executioner 13087 | -1/Command | Destroyed Executioner 13093 | -1/Command | Spotted Striker 13094 | -1/Command | Destroyed Striker 13097 | -1/Command | Spotted Executioner 13097 | -1/Command | Spotted Executioner 13097 | -1/Command | Spotted Striker 13097 | -1/Command | Spotted Striker 13099 | -1/Command | Destroyed Striker 13101 | -1/Command | Destroyed Striker 13101 | -1/Command | Destroyed Executioner 13103 | -1/Command | Destroyed Striker 13103 | -1/Command | Destroyed Executioner 13126 | -1/Command | Destroyed 19 combat bots 13205 | -1/Command | Destroyed 11 combat bots 13389 | -1/Command | Spotted Striker 13390 | -1/Command | Destroyed Investigator 13392 | -1/Command | Spotted Executioner 13397 | -1/Command | Destroyed Executioner 13415 | -1/Command | Destroyed Striker 13423 | -1/Command | Spotted Striker 13423 | -1/Command | Spotted Executioner 13451 | -1/Command | Destroyed 20 combat bots 13467 | -1/Command | Lost 6 parts (2n4w) 13481 | *** | Heading to fleet! Last Messages --------------- 13435_ Dropped Zero-point Reactor. 13435_ Dropped Centrium Light Armor Plating. 13436_ Dropped EM Dispersion Field. 13436_ Adv. Heavy Treads destroyed. 13436_ Dropped Exp. Energy Well. 13437_ The unstable cave ceiling collapses. 13437_ Dropped Adv. Heat Sink. 13438_ Ended siege mode. 13438_ Acquired 90 matter. 13440_ Acquired 54 matter. 13440_ Knocked back. 13441_ Acquired 95 matter. 13442_ Acquired 50 matter. 13443_ Acquired 8 matter. 13445_ K-01 Serf collects debris. 13446_ Acquired 40 matter. 13455_ R-10 Processor collects Imp. Antigrav System. 13458_ R-10 Processor collects Corrupted Gamma Rifle. 13465_ R-10 Processor collects Corrupted KE Penetrator. 13473_ Exp. Biometal Medium Treads destroyed. Map ----- +----------------------------------------------------+ | # #?# # """" " ## / [= " #??? | | # #?# # !=% # !!= ## = # % #??" | | # ### #% ] # !== ## # % #?#" | | # #! # !== # # ##?#" | | + # # # = # % # #?#" | | # ###"#"""##" # # # #?# | | # #?### #?# ####### # #?# | | # #####"""### ####### % # #?# | | ##### # ###" | | # ##"" | | ### ^ ^ [% ### " | | #?###### # # " | | #??????# ### # | | #??????# % | | #??????# | | #??????# | | #??????# "######+#### %########## | | #?????#############???# # # ??# | | #?????# #??????# # ########?# | | +?????# | #??????# #% #????????## | | #?????? #??????# # #?????????? | | #?????# #??????# " #?????????? | | #?????# #############;# #?????????? | | #?????# "" ## #??###????? | | #?????# """" ## #? #????? | | # ?????# """" #; @ ##### #? #????? | | ? ???????# "" ;; #???# ! # #????? | | ? ?????????+ #;;###???# # #????? | | ?????????????# ####?????# + #????? | | ?????????????# "" #????????# # #????? | | ?????????????# """ #????????#+#####+# ! #????? | | ?????????????# "T #????????????? #? #????? | | ?????????????# """ #??????????? #? #????? | | ?????????????# "" #????????? #??###????? | | ?????????????# ##??????%| #?????????? | | ?????????????# = "#???? || #?????????? | | ?????????????###+"###"##??# || #?????????? | | ???????????????# ##?###???# #?????????? | | ???????????????# #????????# #?????????? | | ???????????????# #????????# ??????????? | | ???????????????# #????????? ??????????? | | ???????????????# #?????? # ??????????? | | ???????????????# ### #?? ! ??????????? | | ???????????????# / #???? #######??????????? | | ???????????????##### #??????????????????????? | | ???????????????????????? #??????????????????????? | | ?????????????????????????????????????????????????? | | ?????????????????????????????????????????????????? | | ?????????????????????????????????????????????????? | | ?????????????????????????????????????????????????? | +----------------------------------------------------+ Best States ------------- Heat Dissipation 109 Coolant Potential 80 Energy Generation 43 Energy Capacity 940 Matter Stores 425 Matter Capacity 525 Sight Range 18 Robot Scan Range 18 Terrain Scan Range 16 Terrain Scan Density 60 Cloak Strength 4 Additional Mass Support 12 Base Temperature (-) 200 Armor Coverage 1200 Resistance: KI 25 Resistance: EM 100 Core Shielding 30 Weapon Shielding 66 Point Defense Rating 240 Weapon Cycling 25 Phase Shifting 15 Evasion (%) 68 Targeting Accuracy 36 Melee Accuracy 8 Armor Integrity Analysis 50 Recoil Reduction 8 Matter Filtering 30 Offensive Hacking 26 Defensive Hacking 14 Item Schematics ----------------- None Robot Schematics ------------------ None Fabricated ------------ Nothing Alien Tech Used ----------------- Matter Drive Core Reset Matrix High-powered Transdimensional Reconstructor Spacefold Activator LRC Armor LRC Insulator LRC Matter Compressor Integrity Redistributor Transdimensional Reconstructor Integrated Reactor Integrated Mediator Achievements -------------- None Challenges ------------ None Game ------ Seed HellfireIntegratedCycler Manual? 0 Play Time 03:39:24 Cumulative 1925.3 hours Start 2021.06.09 @ 23:27:21 End 2021.06.10 @ 03:46:04 Sessions 5 Manual Loads 0 Difficulty Rogue Special Mode None Game No. 2564 Rogue 2556 Adventurer 0 Explorer 8 Win Type 2 Total 206 Types 42/27/83/3/3/5/40/2/1 Lore% 99 Gallery% 99 Achievement% 100 Wizard Run 0 Options --------- ASCII 0 Keyboard 1 Movement Vi Keybinds 1 Fullscreen 1 Font 18/SmallcapsGlow Map View 76x50 Tactical HUD 1 Map Filters NONE Filters NONE Steam 1 RUN: 23eec459-b8f0-47c4-aff2-d72631aaca49